fUSD/lending_fUSD_20250404
["ID","MTS","AMOUNT","RATE_DAILY","PERIOD"]
[357139700,1743785439510,-174.60936735,0.00049315,120]
[357139701,1743785439520,-500.0,0.00049315,120]
[357139702,1743785439530,-500.0,0.00049315,120]
[357139703,1743785439540,-500.0,0.00049315,120]
[357139704,1743785439550,-500.0,0.00049315,120]
[357139705,1743785439561,-500.0,0.00049315,120]
[357139706,1743785439570,-500.0,0.00049315,120]
[357139707,1743785439581,-500.0,0.00049315,120]
[357139708,1743785439594,-492.17182908,0.00049315,120]
[357139709,1743785439603,-500.0,0.00049315,120]
[357139710,1743785439613,-500.0,0.00049315,120]
[357139711,1743785439623,-725.03,0.00049315,120]
[357139712,1743785439634,-756.05229415,0.00049315,120]
[357139713,1743785439642,-756.05229415,0.00049315,120]
[357139714,1743785439653,-756.05229415,0.00049315,120]
[357139715,1743785439664,-756.05229415,0.00049315,120]
[357139716,1743785439675,-756.05229415,0.00049315,120]
[357139717,1743785439684,-756.05229415,0.00049315,120]
[357139718,1743785439694,-756.05229415,0.00049315,120]
[357139719,1743785439703,-756.05229415,0.00049315,120]
[357139720,1743785439712,-756.05229415,0.00049315,120]
[357139721,1743785439722,-756.05229415,0.00049315,120]
[357139722,1743785439731,-756.05229415,0.00049315,120]
[357139723,1743785439740,-756.05229415,0.00049315,120]
[357139724,1743785439749,-756.05229415,0.00049315,120]
[357139725,1743785439759,-756.05229415,0.00049315,120]
[357139726,1743785439769,-756.05229415,0.00049315,120]
[357139727,1743785439779,-756.05229415,0.00049315,120]
[357139728,1743785439789,-756.05229415,0.00049315,120]
[357139729,1743785439798,-756.05229415,0.00049315,120]
[357139730,1743785439809,-756.05229415,0.00049315,120]
[357139731,1743785439820,-793.85490886,0.00049315,120]
[357139732,1743785439829,-793.85490886,0.00049315,120]
[357139733,1743785439839,-793.85490886,0.00049315,120]
[357139734,1743785439848,-793.85490886,0.00049315,120]
[357139735,1743785439858,-793.85490886,0.00049315,120]
[357139736,1743785439868,-793.85490886,0.00049315,120]
[357139737,1743785439877,-793.85490886,0.00049315,120]
[357139738,1743785439886,-793.85490886,0.00049315,120]
[357139739,1743785439896,-793.85490886,0.00049315,120]
[357139740,1743785439905,-500.0,0.00049315,120]
[357139741,1743785439915,-500.0,0.00049315,120]
[357139742,1743785439924,-500.0,0.00049315,120]
[357139743,1743785439934,-500.0,0.00049315,120]
[357139744,1743785439943,-500.0,0.00049315,120]
[357139745,1743785439953,-500.0,0.00049315,120]
[357139746,1743785439963,-500.0,0.00049315,120]
[357139747,1743785439972,-500.0,0.00049315,120]
[357139748,1743785439982,-500.0,0.00049315,120]
[357139749,1743785439991,-500.0,0.00049315,120]
[357139750,1743785440000,-500.0,0.00049315,120]
[357139751,1743785440010,-500.0,0.00049315,120]
[357139752,1743785440019,-500.0,0.00049315,120]
[357139753,1743785440028,-500.0,0.00049315,120]
[357139754,1743785440038,-500.0,0.00049315,120]
[357139755,1743785440047,-500.0,0.00049315,120]
[357139756,1743785440059,-500.0,0.00049315,120]
[357139757,1743785440068,-500.0,0.00049315,120]
[357139759,1743785440078,-500.0,0.00049315,120]
[357139761,1743785440087,-500.0,0.00049315,120]
[357139763,1743785440097,-500.0,0.00049315,120]
[357139765,1743785440107,-500.0,0.00049315,120]
[357139767,1743785440117,-500.0,0.00049315,120]
[357139768,1743785440126,-500.0,0.00049315,120]
[357139769,1743785440136,-500.0,0.00049315,120]
[357139770,1743785440146,-523.85426688,0.00049315,120]
[357139771,1743785440156,-500.0,0.00049315,120]
[357139772,1743785440165,-500.0,0.00049315,120]
[357139773,1743785440176,-500.0,0.00049315,120]
[357139774,1743785440186,-500.0,0.00049315,120]
[357139775,1743785440195,-500.0,0.00049315,120]
[357139776,1743785440205,-500.0,0.00049315,120]
[357139777,1743785440214,-500.0,0.00049315,120]
[357139778,1743785440224,-500.0,0.00049315,120]
[357139779,1743785440233,-500.0,0.00049315,120]
[357139780,1743785440243,-500.0,0.00049315,120]
[357139781,1743785440253,-500.0,0.00049315,120]
[357139782,1743785440263,-500.0,0.00049315,120]
[357139783,1743785440273,-1000.0,0.00049315,20]
[357139784,1743785440282,-150.0,0.00049316,7]
[357139785,1743785440291,-150.0,0.00049317,7]
[357139786,1743785440301,-150.0,0.00049327,7]
[357139787,1743785440312,-1883.32810302,0.00049383,15]
[357139788,1743785440322,-150.0,0.00049394,7]
[357139789,1743785440331,-150.0,0.00049396,7]
[357139790,1743785440340,-150.0,0.00049407,7]
[357139791,1743785440350,-150.0,0.00049417,7]
[357139792,1743785440359,-150.0,0.00049422,7]
[357139793,1743785440369,-150.0,0.00049439,7]
[357139794,1743785440378,-150.0,0.00049444,7]
[357139795,1743785440388,-150.0,0.00049452,7]
[357139796,1743785440399,-1000.0,0.00049452,20]
[357139797,1743785440410,-150.55,0.00049479,120]
[357139798,1743785440421,-213.2909,0.00049489,2]
[357139799,1743785440432,-1404.3491,0.00049489,2]
[357139800,1743785440444,-62306.7936,0.00049489,2]
[357139801,1743785440455,-5552.0,0.000495,60]
[357139802,1743785440466,-1883.32810302,0.00049507,15]
[357139803,1743785440478,-150.0,0.00049547,7]
[357139804,1743785440488,-456.06000763,0.00049589,120]
[357139805,1743785440500,-366.85127687,0.00049589,120]
[357139806,1743785440511,-771.85,0.00049589,120]
[357139807,1743785440522,-500.0,0.00049589,120]
[357139808,1743785440533,-500.0,0.00049589,120]
[357139809,1743785440544,-500.0,0.00049589,120]
[357139810,1743785440557,-500.0,0.00049589,120]
[357139811,1743785440568,-604.20801043,0.00049589,120]
[357139812,1743785440584,-500.0,0.00049589,120]
[357139813,1743785440596,-500.0,0.00049589,120]
[357139814,1743785440608,-500.0,0.00049589,120]
[357139815,1743785440619,-500.0,0.00049589,120]
[357139816,1743785440629,-752.65,0.00049589,120]
[357139817,1743785440640,-234.07215368,0.00049589,120]
[357139818,1743785440651,-500.0,0.00049589,120]
[357139819,1743785440664,-500.0,0.00049589,120]
[357139820,1743785440675,-500.0,0.00049589,120]
[357139821,1743785440685,-500.0,0.00049589,120]
[357139822,1743785440695,-500.0,0.00049589,120]
[357139823,1743785440706,-500.0,0.00049589,120]
[357139824,1743785440716,-504.0299819,0.00049589,120]
[357139825,1743785440726,-500.0,0.00049589,120]
[357139826,1743785440736,-1792.4,0.00049589,10]
[357139827,1743785440746,-500.0,0.00049589,120]
[357139828,1743785440756,-500.0,0.00049589,120]
[357139829,1743785440767,-500.0,0.00049589,7]
[357139830,1743785440777,-513.34294635,0.00049589,120]
[357139831,1743785440787,-500.0,0.00049589,120]
[357139832,1743785440797,-500.0,0.00049589,30]
[357139833,1743785440809,-932.29,0.00049589,120]
[357139834,1743785440819,-500.0,0.00049589,120]
[357139835,1743785440830,-500.0,0.00049589,120]
[357139837,1743785440840,-973.28,0.00049589,120]
[357139839,1743785440851,-500.0,0.00049589,120]
[357139841,1743785440861,-2000.0,0.00049589,2]
[357139843,1743785440872,-500.0,0.00049589,120]
[357139845,1743785440883,-997.14,0.00049589,120]
[357139847,1743785440894,-159.24849884,0.00049589,120]
[357139849,1743785440905,-2999.97,0.00049589,2]
[357139851,1743785440914,-500.0,0.00049589,2]
[357139853,1743785440925,-222.87730729,0.00049589,120]
[357139855,1743785440935,-500.0,0.00049589,120]
[357139857,1743785440945,-500.0,0.00049589,120]
[357139859,1743785440954,-500.0,0.00049589,120]
[357139861,1743785440963,-907.09,0.00049589,120]
[357139863,1743785440972,-500.0,0.00049589,7]
[357139865,1743785440982,-538.49,0.00049589,120]
[357139867,1743785440991,-500.0,0.00049589,120]
[357139869,1743785441001,-500.0,0.00049589,120]
[357139871,1743785441010,-500.0,0.00049589,120]
[357139873,1743785441019,-857.64,0.00049589,120]
[357139875,1743785441030,-500.0,0.00049589,120]
[357139877,1743785441039,-503.81,0.00049589,120]
[357139879,1743785441049,-500.0,0.00049589,120]
[357139881,1743785441063,-169.51348153,0.00049589,120]
[357139883,1743785441072,-443.63563698,0.00049589,120]
[357139885,1743785441082,-500.0,0.00049589,120]
[357139887,1743785441091,-500.0,0.00049589,120]
[357139889,1743785441101,-500.0,0.00049589,120]
[357139891,1743785441110,-500.0,0.00049589,120]
[357139893,1743785441119,-500.0,0.00049589,120]
[357139895,1743785441129,-500.0,0.00049589,120]
[357139897,1743785441138,-725.03,0.00049589,120]
[357139899,1743785441148,-1883.32810302,0.0004963,15]
[357139901,1743785441157,-150.0,0.00049659,7]
[357139903,1743785441167,-150.1,0.00049674,120]
[357139905,1743785441176,-150.0,0.000497,7]
[357139907,1743785441186,-1128.1433835,0.00049704,4]
[357139909,1743785441196,-150.0,0.00049708,7]
[357139911,1743785441206,-150.0,0.00049719,7]
[357139913,1743785441215,-166.65,0.00049719,2]
[357139915,1743785441225,-150.0,0.00049724,7]
[357139928,1743785441342,-150.0,0.00049729,7]
[357139930,1743785441352,-1883.32810302,0.00049753,15]
[357139932,1743785441362,-150.0,0.00049779,7]
[357139934,1743785441372,-150.0,0.00049788,7]
[357139936,1743785441382,-154.09630242,0.00049793,37]
[357139938,1743785441392,-150.0,0.00049796,7]
[357139940,1743785441401,-1951.8883,0.000498,2]
[357139942,1743785441410,-25026.7022,0.000498,2]
[357139944,1743785441420,-152.29444619,0.000498,26]
[357139946,1743785441429,-210.73834181,0.000498,10]
[357139948,1743785441439,-188.09187883,0.000498,2]
[357139950,1743785441448,-9965.85050541,0.000498,2]
[357139952,1743785441458,-169.69843726,0.000498,2]
[357139954,1743785441468,-871.31740515,0.000498,2]
[357139956,1743785441479,-166.65,0.00049802,2]
[357139958,1743785441490,-150.0,0.00049803,7]
[357139960,1743785441499,-808.95534772,0.00049805,15]
[357139962,1743785441509,-150.0,0.00049807,7]
[357139964,1743785441520,-150.0,0.00049813,7]
[357139966,1743785441531,-150.0,0.00049819,7]
[357139968,1743785441543,-150.0,0.0004982,7]
[357139970,1743785441554,-150.55,0.00049853,120]
[357139972,1743785441571,-771.85,0.00049863,120]
[357139974,1743785441583,-500.0,0.00049863,120]
[357139976,1743785441597,-500.0,0.00049863,120]
[357139977,1743785441608,-500.0,0.00049863,120]
[357139980,1743785441619,-500.0,0.00049863,120]
[357139981,1743785441629,-500.0,0.00049863,120]
[357139984,1743785441639,-500.0,0.00049863,120]
[357139985,1743785441650,-500.0,0.00049863,120]
[357139988,1743785441662,-500.0,0.00049863,120]
[357139989,1743785441674,-752.65,0.00049863,120]
[357139992,1743785441684,-544.47003216,0.00049863,120]
[357139994,1743785441694,-500.0,0.00049863,120]
[357139996,1743785441703,-404.62825005,0.00049863,120]
[357139997,1743785441713,-500.0,0.00049863,120]
[357139999,1743785441723,-500.0,0.00049863,120]
[357140002,1743785441732,-500.0,0.00049863,120]
[357140004,1743785441742,-500.0,0.00049863,120]
[357140005,1743785441751,-1792.4,0.00049863,10]
[357140007,1743785441761,-500.0,0.00049863,120]
[357140009,1743785441771,-500.0,0.00049863,120]
[357140012,1743785441781,-500.0,0.00049863,7]
[357140014,1743785441791,-500.0,0.00049863,120]
[357140015,1743785441800,-500.0,0.00049863,30]
[357140017,1743785441812,-932.29,0.00049863,120]
[357140019,1743785441821,-500.0,0.00049863,120]
[357140021,1743785441831,-500.0,0.00049863,120]
[357140023,1743785441840,-973.28,0.00049863,120]
[357140025,1743785441850,-500.0,0.00049863,120]
[357140027,1743785441859,-2000.0,0.00049863,2]
[357140029,1743785441868,-391.5353458,0.00049863,120]
[357140031,1743785441877,-997.14,0.00049863,120]
[357140033,1743785441885,-2999.97,0.00049863,2]
[357140035,1743785441895,-500.0,0.00049863,2]
[357140037,1743785441904,-500.0,0.00049863,120]
[357140039,1743785441913,-500.0,0.00049863,120]
[357140041,1743785441924,-500.0,0.00049863,120]
[357140043,1743785441933,-907.09,0.00049863,120]
[357140044,1743785441943,-500.0,0.00049863,7]
[357140046,1743785441952,-538.49,0.00049863,120]
[357140047,1743785441962,-500.0,0.00049863,120]
[357140048,1743785441972,-500.0,0.00049863,120]
[357140049,1743785441982,-500.0,0.00049863,120]
[357140050,1743785441993,-857.64,0.00049863,120]
[357140051,1743785442003,-500.0,0.00049863,120]
[357140052,1743785442013,-503.81,0.00049863,120]
[357140053,1743785442023,-500.0,0.00049863,120]
[357140054,1743785442031,-500.0,0.00049863,120]
[357140055,1743785442041,-500.0,0.00049863,120]
[357140056,1743785442051,-500.0,0.00049863,120]
[357140057,1743785442064,-500.0,0.00049863,120]
[357140059,1743785442074,-500.0,0.00049863,120]
[357140061,1743785442084,-500.0,0.00049863,120]
[357140063,1743785442093,-725.03,0.00049863,120]
[357140065,1743785442103,-151.0,0.0004987,2]
[357140067,1743785442114,-500.0,0.0004987,2]
[357140069,1743785442124,-160.55909828,0.00049873,10]
[357140070,1743785442133,-1883.32810302,0.00049877,15]
[357140072,1743785442143,-172.75,0.00049883,2]
[357140074,1743785442154,-166.65,0.00049885,2]
[357140076,1743785442164,-150.55,0.0004989,120]
[357140078,1743785442173,-150.55,0.0004989,120]
[357140080,1743785442183,-150.55,0.0004989,120]
[357140082,1743785442193,-150.55,0.0004989,120]
[357140084,1743785442203,-150.55,0.0004989,120]
[357140086,1743785442212,-150.55,0.0004989,120]
[357140088,1743785442222,-150.55,0.0004989,120]
[357140090,1743785442231,-150.55,0.0004989,120]
[357140092,1743785442241,-48729.66244926,0.00049898,120]
[357140093,1743785442250,-771746.80950129,0.000499,2]
[357140109,1743785442403,-5569.97452503,0.000499,2]
[357140131,1743785442675,-1283.47974388,0.000499,2]
[357140132,1743785442722,-8226.01435173,0.000499,2]
[357140133,1743785442753,-46.6878916,0.000499,2]
[357140134,1743785442770,-13824.55713511,0.000499,2]
[357140135,1743785442925,-6300.00179226,0.000499,2]
[357140136,1743785442937,-96385.86508072,0.000499,2]
[357140138,1743785442949,-3797.62393294,0.000499,2]
[357140139,1743785442961,-50732.7791015,0.000499,2]
[357140141,1743785442978,-962.65033312,0.00048913,21]
[357140143,1743785442988,-222.79471528,0.000499,2]
[357140144,1743785442998,-17225.9003604,0.000499,2]
[357140145,1743785443010,-1504.02127916,0.000499,2]
[357140146,1743785443021,-8034.83627695,0.000499,2]
[357140147,1743785443032,-22733.15495319,0.000499,2]
[357140148,1743785443044,-6625.63002839,0.000499,2]
[357140153,1743785443286,-61.61094218,0.00048866,30]
[357140155,1743785443634,-353.92,0.00048866,30]
[357140156,1743785443646,-484.7099998,0.00048866,30]
[357140157,1743785443661,-166.28434063,0.00048866,30]
[357140158,1743785443672,-7701.83931089,0.000499,2]
[357140159,1743785443711,-121.04208787,0.000499,2]
[357140160,1743785443722,-29481.33933272,0.000499,2]
[357140169,1743785446365,-499.99999999,0.00048889,120]
[357140170,1743785446375,-500.0,0.00049315,120]
[357140171,1743785446384,-500.0,0.00049315,120]
[357140172,1743785446394,-500.0,0.00049315,120]
[357140173,1743785446403,-500.0,0.00049315,120]
[357140174,1743785446412,-500.0,0.00049315,120]
[357140175,1743785446421,-550.0,0.00049315,120]
[357140176,1743785446430,-500.0,0.00049315,120]
[357140177,1743785446440,-500.0,0.00049315,120]
[357140178,1743785446449,-500.0,0.00049315,120]
[357140179,1743785446459,-500.0,0.00049315,120]
[357140180,1743785446469,-500.0,0.00049315,120]
[357140181,1743785446479,-500.0,0.00049315,120]
[357140182,1743785446489,-500.0,0.00049315,120]
[357140183,1743785446499,-500.0,0.00049315,120]
[357140184,1743785446508,-500.0,0.00049315,120]
[357140185,1743785446517,-500.0,0.00049315,120]
[357140186,1743785446526,-500.0,0.00049315,120]
[357140187,1743785446535,-240049.67745205,0.000499,2]
[357140188,1743785446549,-159145.62562663,0.000499,2]
[357140189,1743785446559,-5552.0,0.000499,14]
[357140190,1743785446570,-222712.55,0.000499,60]
[357140191,1743785446581,-150.0,0.00049903,7]
[357140192,1743785446592,-808.95534772,0.00049903,15]
[357140193,1743785446603,-150.0,0.00049921,7]
[357140194,1743785446613,-300.0,0.00049954,120]
[357140195,1743785446623,-1500.0,0.00049957,5]
[357140196,1743785446634,-166.65,0.00049968,2]
[357140197,1743785446643,-500.0,0.00049973,10]
[357140198,1743785446652,-500.0,0.00049973,10]
[357140199,1743785446662,-500.83248115,0.00049973,10]
[357140200,1743785446673,-161.35134053,0.00049973,10]
[357140201,1743785446683,-500.0,0.00049973,10]
[357140202,1743785446693,-150.55,0.0004999,120]
[357140203,1743785446703,-150.55,0.0004999,120]
[357140204,1743785446712,-150.55,0.0004999,120]
[357140205,1743785446721,-150.55,0.0004999,120]
[357140207,1743785446732,-150.55,0.0004999,120]
[357140208,1743785446741,-150.55,0.0004999,120]
[357140209,1743785446750,-50000.0,0.0005,50]
[357140210,1743785446760,-900.0,0.0005,20]
[357140211,1743785446770,-1000.0,0.0005,120]
[357140212,1743785446779,-62454.57,0.0005,120]
[357140214,1743785446789,-900000.0,0.0005,120]
[357140216,1743785446798,-192.793727,0.0005,120]
[357140217,1743785446807,-151.0,0.0005,120]
[357140218,1743785446818,-151.0,0.0005,120]
[357140219,1743785446827,-151.0,0.0005,120]
[357140220,1743785446836,-151.0,0.0005,120]
[357140221,1743785446846,-151.0,0.0005,120]
[357140222,1743785446855,-151.0,0.0005,120]
[357140223,1743785446864,-160.0,0.0005,30]
[357140224,1743785446873,-151.0,0.0005,120]
[357140225,1743785446882,-151.975572,0.0005,120]
[357140226,1743785446891,-154.634698,0.0005,120]
[357140227,1743785446900,-151.578604,0.0005,120]
[357140228,1743785446909,-151.0,0.0005,120]
[357140229,1743785446919,-151.0,0.0005,120]
[357140230,1743785446928,-861.13597,0.0005,120]
[357140231,1743785446938,-861.13597,0.0005,120]
[357140232,1743785446947,-151.0,0.0005,120]
[357140233,1743785446956,-151.0,0.0005,120]
[357140234,1743785446965,-2000.0,0.0005,7]
[357140235,1743785446975,-1883.32810302,0.0005,15]
[357140236,1743785446985,-150.0,0.00050001,7]
[357140237,1743785446994,-808.95534772,0.00050002,15]
[357140238,1743785447004,-933.24,0.00050002,2]
[357140239,1743785447015,-150.0,0.00050005,7]
[357140240,1743785447025,-196.56,0.00050036,2]
[357140241,1743785447035,-150.0,0.00050039,7]
[357140242,1743785447045,-150.0,0.00050045,7]
[357140243,1743785447054,-500.0,0.00050073,10]
[357140244,1743785447064,-539.82438458,0.00050073,10]
[357140245,1743785447074,-150.0,0.00050084,7]
[357140246,1743785447083,-111902.74224893,0.000501,120]
[357140247,1743785447095,-8311.66960891,0.000501,120]
[357140248,1743785447298,-294.48896182,0.000501,120]
[357140249,1743785447333,-57618.30822744,0.000501,120]
[357140250,1743785449753,5555.0,0.00044,5]
[357140251,1743785450028,157.16468139,0.000429,3]
[357140252,1743785450049,616.7763672,0.000429,3]
[357140253,1743785450069,1362.30143,0.000429,3]
[357140254,1743785450093,682.50385956,0.000429,3]
[357140256,1743786440118,-157.96,0.00026849,2]
[357140257,1743786440139,-40.01679751,0.00036027,2]
[357140258,1743786548137,-117.94320249,0.00036027,2]
[357140259,1743786548161,-398.37859639,0.00039299,15]
[357140260,1743786548197,-3898.41424712,0.000393,2]
[357140261,1743786550113,-28127.58575288,0.000393,2]
[357140262,1743786550136,-156.14202297,0.0003943,117]
[357140263,1743786550157,-415.31994428,0.0003953,2]
[357140264,1743786550350,-250.0,0.0003963,2]
[357140265,1743786550374,-403.48541538,0.0004,30]
[357140266,1743786550396,-471.059,0.0004,56]
[357140267,1743786550417,-500.0,0.0004,2]
[357140268,1743786550438,-500.0,0.0004,2]
[357140269,1743786550459,-500.0,0.0004,2]
[357140270,1743786550479,-199.59522794,0.0004,2]
[357140271,1743786550503,-5555.0,0.000402,3]
[357140272,1743786550524,-5555.0,0.000411,5]
[357140273,1743786550550,-151.0,0.00043374,2]
[357140274,1743786550572,-644.79446246,0.00043374,2]
[357140275,1743786550595,-156.14202295,0.00043587,120]
[357140276,1743786550615,-156.587,0.00044743,2]
[357140277,1743786557185,-157.96,0.00045205,2]
[357140281,1743786632314,-846.67,0.00045987,2]
[357140282,1743786632324,-219.10729899,0.00046112,2]
[357140283,1743786632333,-117.09160224,0.000474,2]
[357140284,1743786632345,-606.55715538,0.000474,2]
[357140285,1743786632364,-550.99707701,0.000474,2]
[357140286,1743786632375,-266.08916345,0.000474,2]
[357140287,1743786632387,-459.26500192,0.000474,2]
[357140288,1743786632397,-200.0,0.00047473,2]
[357140289,1743786632406,-1952.98,0.00047516,2]
[357140290,1743786632416,-2594.17,0.00047538,2]
[357140291,1743786632425,-200.8,0.00047563,120]
[357140292,1743786632434,-1762.7,0.00047586,2]
[357140293,1743786632444,-150.22,0.00047588,2]
[357140294,1743786632453,-156.14202295,0.00047743,120]
[357140295,1743786632463,-155.74,0.00047833,120]
[357140296,1743786632472,-846.67,0.00048251,2]
[357140297,1743786632482,-23900.0,0.00048317,2]
[357140298,1743786632491,-7622.73,0.00048334,2]
[357140299,1743786632500,-1000.0,0.00048425,2]
[357140300,1743786632510,-250.0,0.00048566,120]
[357140301,1743786632519,-169.35,0.0004863,120]
[357140302,1743786632529,-154.96,0.0004863,2]
[357140303,1743786632538,-483.75,0.00048658,2]
[357140304,1743786632548,-150.0,0.00048696,7]
[357140305,1743786632557,-481.2991,0.0004889,2]
[357140306,1743786632567,-248.0,0.00049,120]
[357140307,1743786632576,-295.55,0.00049285,2]
[357140308,1743786632586,-151.270673,0.00049315,120]
[357140309,1743786632597,-500.0,0.00049315,120]
[357140310,1743786632606,-500.0,0.00049315,120]
[357140311,1743786632615,-500.0,0.00049315,120]
[357140312,1743786632624,-500.0,0.00049315,120]
[357140313,1743786632634,-207.38542668,0.00049315,120]
[357140314,1743786632644,-500.0,0.00049315,120]
[357140315,1743786632653,-150.0,0.00049315,2]
[357140316,1743786632663,-444.76,0.00049589,30]
[357140317,1743786632672,-784.07,0.00049589,30]
[357140318,1743786632682,-444.76,0.00049589,30]
[357140319,1743786632692,-444.76,0.00049589,30]
[357140320,1743786632702,-846.1075376,0.00049704,4]
[357140321,1743786632713,-151.0,0.00049847,2]
[357140322,1743786632722,-3950.0,0.00049847,2]
[357140323,1743786632732,-851.0,0.00049847,2]
[357140324,1743786632742,-500.0,0.00049909,30]
[357140325,1743786632752,-540.95541647,0.00049971,120]
[357140326,1743786632762,-540.95541647,0.00049971,120]
[357140327,1743786632772,-540.95541647,0.00049971,120]
[357140328,1743786632781,-540.95541647,0.00049971,120]
[357140329,1743786632791,-540.95541647,0.00049971,120]
[357140330,1743786632800,-540.95541647,0.00049971,120]
[357140331,1743786632809,-540.95541647,0.00049971,120]
[357140332,1743786632819,-28.03676007,0.00049971,120]
[357140333,1743786632831,-512.9186564,0.00049971,120]
[357140334,1743786632840,-381.1453826,0.00049971,120]
[357140335,1743786632852,-159.81003387,0.00049971,120]
[357140336,1743786632862,-540.95541647,0.00049971,120]
[357140337,1743786632872,-540.95541647,0.00049971,120]
[357140338,1743786632881,-540.95541647,0.00049971,120]
[357140339,1743786632891,-540.95541647,0.00049971,120]
[357140340,1743786632901,-540.95541647,0.00049971,120]
[357140342,1743786632911,-540.95541647,0.00049971,120]
[357140344,1743786632920,-540.95541647,0.00049971,120]
[357140346,1743786632929,-540.95541647,0.00049971,120]
[357140348,1743786632938,-540.95541647,0.00049971,120]
[357140350,1743786632947,-540.95541647,0.00049971,120]
[357140353,1743786632957,-540.95541647,0.00049971,120]
[357140356,1743786632967,-547.71735916,0.00049971,120]
[357140358,1743786632981,-547.71735916,0.00049971,120]
[357140362,1743786632991,-547.71735916,0.00049971,120]
[357140365,1743786633000,-547.71735916,0.00049971,120]
[357140368,1743786633010,-547.71735916,0.00049971,120]
[357140370,1743786633021,-547.71735916,0.00049971,120]
[357140372,1743786633030,-547.71735916,0.00049971,120]
[357140374,1743786633040,-547.71735916,0.00049971,120]
[357140376,1743786633051,-1698.1434,0.00049979,2]
[357140378,1743786633061,-1040.72074604,0.00049989,120]
[357140380,1743786633071,-174.04581079,0.00049989,28]
[357140382,1743786633081,-898.47364432,0.0004999,22]
[357140383,1743786633093,-11988.3831238,0.0004999,2]
[357140386,1743786633105,-1223.7524762,0.0004999,2]
[357140388,1743786633116,-396.9894682,0.0004999,2]
[357140390,1743786633129,-1482.5487398,0.0004999,2]
[357140392,1743786633142,-4298.925492,0.0004999,2]
[357140394,1743786633152,-223.0,0.0004999,2]
[357140396,1743786633163,-152.29444619,0.0005,26]
[357140398,1743786633173,-154.09630242,0.0005,38]
[357140400,1743786633183,-7915.38704879,0.0005,120]
[357140402,1743786633195,-12909.36431259,0.0005,120]
[357140404,1743786633206,-512.60815324,0.0005,120]
[357140407,1743786633227,-5628.99225069,0.0005,120]
[357140411,1743786633249,-4595.519166,0.0005,120]
[357140421,1743786633339,-322.78,0.0005,120]
[357140423,1743786633356,-2008.98499014,0.0005,120]
[357140705,1743786638302,-1058.18887029,0.00049,30]
[357140706,1743786638312,-1383.40612875,0.0005,120]
[357140707,1743786638324,-515.29482318,0.0005,120]
[357140708,1743786638355,-939.3309963,0.0005,120]
[357140709,1743786638367,-727.95966854,0.0005,120]
[357140710,1743786638380,-3000.0,0.0005,120]
[357140711,1743786638410,-435.68171857,0.0005,120]
[357140712,1743786638466,-356.76190004,0.0005,120]
[357140713,1743786638478,-844.15698383,0.0005,120]
[357140714,1743786638520,-439.215,0.0005,120]
[357140715,1743786638531,-3190.74930187,0.0005,120]
[357140820,1743786640559,-1118.0,0.00049847,2]
[357140822,1743786640569,-1624.04378841,0.0005,120]
[357140849,1743786640821,-10532.0,0.0005,120]
[357140877,1743786641102,-151.16351891,0.0005,120]
[357141088,1743786646562,-568.74881196,0.0005,120]
[357141089,1743786646616,-835.11428,0.0005,120]